Workbook

Sheet 2025 Fees
B2: Daradgee Environmental Education Centre 2025 Schedule of Fees
B3: Growth. Connection. Opportunity For All.
B4: Primary Schools (Prices Exclude GST)
B5: Camp Selection | C5: Activities | D5: Food | E5: Accommodation | F5: Total
B6: Day visit | C6: 15 | D6: 10 | E6: 0 | F6: =SUM(C6:E6) -> 25
B7: 3 day camp | C7: 45 | D7: 102 | E7: 30 | F7: =SUM(C7:E7) -> 177
B8: 4 day camp | C8: 55 | D8: 148 | E8: 45 | F8: =SUM(C8:E8) -> 248
B9: 5 day camp | C9: 65 | D9: 194 | E9: 60 | F9: =SUM(C9:E9) -> 319
B10: Additional Optional Charges
B11: Morning Tea First Day | D11: 5.5 | F11: =SUM(C11:E11) -> 5.5
B12: Afternoon Tea Last Day | D12: 5.5 | F12: =SUM(C12:E12) -> 5.5
B13: Camp Shirt | D13: 25 | F13: 25
B15: Secondary Students + Clubs & Associations (Prices Exclude GST).
B16: Camp Selection | C16: Activities | D16: Food | E16: Accommodation | F16: Total
B17: Day visit | C17: =C6 -> 15 | D17: =(D6+(D6*0.5)) -> 15 | E17: =E6 -> 0 | F17: =SUM(C17:E17) -> 30
B18: 3 day camp | C18: =C7 -> 45 | D18: =(D7+(D7*0.5)) -> 153 | E18: =E7 -> 30 | F18: =SUM(C18:E18) -> 228
B19: 4 day camp | C19: =C8 -> 55 | D19: =(D8+(D8*0.5)) -> 222 | E19: 45 | F19: =SUM(C19:E19) -> 322
B20: 5 day camp | C20: =C9 -> 65 | D20: =(D9+(D9*0.5)) -> 291 | E20: 60 | F20: =SUM(C20:E20) -> 416
B21: Additional Optional Charges
B22: Morning Tea First Day | D22: =D11+(D11*0.5) -> 8.25 | F22: =SUM(C22:E22) -> 8.25
B23: Afternoon Tea Last Day | D23: =D12+(D12*0.5) -> 8.25 | F23: =SUM(C23:E23) -> 8.25
B24: Camp Shirt | D24: 25 | F24: 25
B26: Terms and Conditions:
B27: * Multiple day camps include lunch on the first and last day. * Adults will need to pay for food only. * For groups less than 25 total (adults + students) there is a kitchen surcharge of 30%. * Food prices are based on adults and children assisting in the kitchen. If full catering is required a 50% surcharge will be applied. * Weekends and Public Holidays incur a 35% surcharge * Bus / Transport charges will be in addition to camp cost and will be charged directly to you based on price from third party provider. *GST is charged on the basis on what Daradgee EEC is required to charge. You are required to work out what GST you need to pass onto individuals attending camp. *Late cancellations with less than 8 weeks’ notice prior to camp incur a late cancellation fee calculated at 60% of accommodation and activity costs. *Final student and adult numbers must be confirmed via Book the Cook 2 weeks/10 working days prior to camp.

Sheet Calculator
B2: Daradgee Environmental Education Centre 2025 Camp Calculator
B3: Growth. Connection. Opportunity For All.
B4: Please select from drop down menus and insert dates and numbers where applicable in WHITE areas. These are used to calcuate the camp cost.
B6: Camp Selection | E6: Would Students like camp shirts?
E7: $25 per shirt
B8: Camp Arrival Date | E8: Is the camp on Weekend or Public Holiday?
B10: Number of Students | E10: Full Catering Required?
E11: 50% surcharge if camp attendees want Full Catering - i.e. no kitchen/dining duties (clearing & wiping of tables, dishwasher duty, general tidy-up) | H11: =F12&F14&F16 -> 
B12: Number of Supervising Adults | E12: Add Morning Tea - First Day | H12: YesYesYes | I12: ='2025 Fees'!D11+'2025 Fees'!D12-'2025 Fees'!D12 -> 5.5
B13: Supervising Adults Pay for food only | H13: YesYesNo | I13: ='2025 Fees'!D11+'2025 Fees'!D12 -> 11
B14: Group Type | E14: Add Afternoon Tea - Last Day | H14: YesNoNo | I14: ='2025 Fees'!D11 -> 5.5
C15: =IF($C$10<=list!$I$3,list!$J$3,(IF($C$10<=list!$I$4,list!$J$4,(IF($C$10<=list!$I$5,list!$J$5,(IF($C$10<=list!$I$6,list!$J$6,(IF($C$10<=list!$I$7,list!$J$7,(IF($C$10<=list!$I$8,list!$J$8,("add to list")))))))))))) -> 1 | H15: NoYesYes | I15: 0
B16: Are you a State School? | E16: Remove Morning Tea - Last Day | H16: NoNoYes | I16: -5.5
B17: GST is not applicable to state schools. GST does apply to other entities. | H17: NoNoNo | I17: 0
B18: Summary of Camp Costs | H18: NoYesNo | I18: 5.5
B20: Item | C20: Per Student | E20: Student Group Total (Excl GST) | F20: GST (If Applicable)
B21: =IF(ISBLANK(C6),"Camp Selection",C6) -> Camp Selection | C21: =IF(ISBLANK($C$14),0,(IF($C$14="Primary School",VLOOKUP($B$21,list!$B$14:$E$17,2,FALSE),VLOOKUP($B$21,list!$B$14:$D$17,3,FALSE)))) -> 0 | E21: =IFERROR(IF(ISBLANK($C$10),0,($C$10*C21)),0) -> 0 | F21: =IF($C$16="No",(E21*10%),0) -> 0
B22: Additional Morning Tea | C22: =IF(F12="Yes",(IF(ISBLANK($C$14),0,(IF($C$14="Primary School",VLOOKUP($B$21,list!$B$14:$K$17,10,FALSE),VLOOKUP($B$21,list!$B$14:$L$17,11,FALSE))))),0) -> 0 | E22: 0 | F22: 0
B23: Additional Afternoon Tea | C23: =IF(F14="Yes",(IF(ISBLANK($C$14),0,(IF($C$14="Primary School",VLOOKUP($B$21,list!$B$14:$K$17,10,FALSE),VLOOKUP($B$21,list!$B$14:$L$17,11,FALSE))))),0) -> 0 | E23: 0 | F23: 0
B24: Remove Morning Tea Last Day | C24: =IF(F16="Yes",(IF(ISBLANK($C$14),0,(IF($C$14="Primary School",-(VLOOKUP($B$21,list!$B$14:$K$17,10,FALSE)),-(VLOOKUP($B$21,list!$B$14:$L$17,11,FALSE)))))),0) -> 0 | E24: =IFERROR(IF(ISBLANK($C$10),0,($C$10*C24)),0) -> 0 | F24: 0
B25: Fully Catered loading | C25: =IF(ISBLANK(F10),0,(IF(F10="Yes",(IF(ISBLANK($C$14),"",(IF($C$14="Primary School",VLOOKUP($B$21,list!$B$14:$J$17,4,FALSE),VLOOKUP($B$21,list!$B$14:$J$17,5,FALSE))))),0))) -> 0 | E25: 0 | F25: 0
B26: < 25 People Kitchen loading | C26: =IF(ISBLANK($C$10),0,(IF(SUM($C$10,$C$12)<25,(IF(ISBLANK($C$14),0,(IF($C$14="Primary School",VLOOKUP($B$21,list!$B$14:$J$17,8,FALSE),VLOOKUP($B$21,list!$B$14:$J$17,9,FALSE))))),0))) -> 0 | E26: 0 | F26: 0
B27: Weekend loading | C27: =IF(ISBLANK($F$8),0,(IF($F$8="Yes",(SUM($C$21:$C$26*35%)),0))) -> 0 | E27: 0 | F27: 0
B28: Camp Shirt | C28: =IF($F$6="Yes",25,0) -> 0 | E28: 0 | F28: 0
B29: Total Student Costs | C29: =SUM(C21:C28) -> 0 | E29: =SUM(E21:E28) -> 0 | F29: =SUM(F21:F28) -> 0
B31: Supervising Adult Food Costs | C31: =IF(B21="Camp Selection",0,(IF(F10="Yes",((VLOOKUP($B$21,list!$B$14:$N$17,13,FALSE)))+((VLOOKUP($B$21,list!$B$14:$N$17,13,FALSE))*50%),(IF(F8="Yes",((VLOOKUP($B$21,list!$B$14:$N$17,13,FALSE)))+((VLOOKUP($B$21,list!$B$14:$N$17,13,FALSE))*35%),((VLOOKUP($B$21,list!$B$14:$N$17,13,FALSE)))))))) -> 0 | E31: =C31*C12 -> 0 | F31: =IF($C$16="No",(E31*10%),0) -> 0
B32: Adult Morning & Afternoon Tea Adjustment/s | C32: =IF(F14="Yes",(IF(ISBLANK($C$14),0,(IF($C$14="Primary School",VLOOKUP($B$21,list!$B$14:$K$17,10,FALSE),VLOOKUP($B$21,list!$B$14:$L$17,11,FALSE))))),0)+IF(F12="Yes",(IF(ISBLANK($C$14),0,(IF($C$14="Primary School",VLOOKUP($B$21,list!$B$14:$K$17,10,FALSE),VLOOKUP($B$21,list!$B$14:$L$17,11,FALSE))))),0)-IF(F16="Yes",(IF(ISBLANK($C$14),0,(IF($C$14="Primary School",VLOOKUP($B$21,list!$B$14:$K$17,10,FALSE),VLOOKUP($B$21,list!$B$14:$L$17,11,FALSE))))),0) -> 0 | E32: =C32*C12 -> 0 | F32: =IF($C$16="No",(E32*10%),0) -> 0
B33: Fully Catered loading | C33: =IF(ISBLANK(F10),0,(IF(F10="Yes",(IF(ISBLANK($C$14),"",(IF($C$14="Primary School",VLOOKUP($B$21,list!$B$14:$J$17,4,FALSE),VLOOKUP($B$21,list!$B$14:$J$17,5,FALSE))))),0))) -> 0 | E33: =IFERROR(IF(ISBLANK($C$12),0,($C$12*C33)),0) -> 0 | F33: =IF($C$16="No",(E33*10%),0) -> 0
B34: < 25 People Kitchen loading | C34: =IF(ISBLANK($C$10),0,(IF(SUM($C$10,$C$12)<25,(IF(ISBLANK($C$14),0,(IF($C$14="Primary School",VLOOKUP($B$21,list!$B$14:$J$17,8,FALSE),VLOOKUP($B$21,list!$B$14:$J$17,9,FALSE))))),0))) -> 0 | E34: =IFERROR(IF(ISBLANK($C$12),0,($C$12*C34)),0) -> 0 | F34: 0
B35: Weekend loading | C35: =IF(ISBLANK($F$8),0,(IF($F$8="Yes",(SUM($C$31:$C$34*35%)),0))) -> 0 | E35: =IFERROR(IF(ISBLANK($C$12),0,($C$12*C35)),0) -> 0 | F35: 0
B36: Insert No. of Adult Camp Shirts Required | E36: =IFERROR(C36*25,0) -> 0 | F36: =IF($C$16="No",(E36*10%),0) -> 0
B37: Total Adult Costs | E37: =SUM(E31:E36) -> 0 | F37: =SUM(F31:F36) -> 0
B39: Total Daradgee EEC Costs | E39: =E37+E29 -> 0 | F39: =F37+F29 -> 0
B41: Total Bus Transport on Camp Costs (Third Party Charge) | F41: =E41*10% -> 0
B42: Other External Visitation Costs (Insert As Appropriate) | F42: =E42*10% -> 0
B44: Total School Camp Cost | E44: =SUM(E39,E41,E42) -> 0 | F44: =SUM(F39,F41,F42) -> 0
B46: Terms and Conditions
B47: * Multiple day camps include lunch on the first and last day. * Adults will need to pay for food only. * For groups less than 25 total (adults + students) there is a kitchen surcharge of 30%. * Food prices are based on adults and children assisting in the kitchen. If full catering is required a 50% surcharge will be applied. * Weekends and Public Holidays incur a 35% surcharge * Bus / Transport charges will be in addition to camp cost and will be charged directly to you based on price from third party provider. *GST is charged on the basis on what Daradgee EEC is required to charge. You are required to work out what GST you need to pass onto individuals attending camp. *Late cancellations with less than 8 weeks’ notice prior to camp incur a late cancellation fee calculated at 60% of accommodation and activity costs. *Final student and adult numbers must be confirmed via Book the Cook 2 weeks/10 working days prior to camp.

Sheet list (hidden)
B1: Group Type | C1: Loading
B2: Primary School | C2: BASE | D2: 1 | F2: Yes | H2: Min Group Size | I2: Max Group Size | J2: Number of FOC adults | L2: Acceptable Ratio of adults / kids | P2: Start Date | Q2: Finish Date | R2: Days between
B3: Secondary School | C3: 0.5 | D3: 2 | F3: No | H3: 0 | I3: 25 | J3: 1 | K3: =J3/I3 -> 0.04 | L3: =2/26 -> 0.07692307692 | P3: 2025-01-01
B4: Club or Association | C4: 0.5 | D4: 2 | H4: 26 | I4: 50 | J4: 2 | K4: =J4/I4 -> 0.04 | L4: =3/51 -> 0.05882352941 | P4: 2025-01-02
B5: Weekend camp | C5: 0.35 | D5: 3 | H5: 51 | I5: 75 | J5: 3 | K5: 0.04 | L5: =4/76 -> 0.05263157895 | P5: 2025-01-03
B6: Fully Catered | C6: 0.5 | D6: 4 | H6: 76 | I6: 100 | J6: 4 | K6: 0.04 | L6: =5/101 -> 0.0495049505 | P6: 2025-01-04
B7: State School | C7: Excl GST | H7: 101 | I7: 125 | J7: 5 | K7: 0.04 | L7: =6/126 -> 0.04761904762 | P7: 2025-01-05
B8: Private School or Club or Association | C8: Incl GST | H8: 126 | I8: 150 | J8: 6 | K8: 0.04 | L8: =7/151 -> 0.04635761589 | P8: 2025-01-06
P9: 2025-01-07
B10: optional extras | P10: 2025-01-08
P11: 2025-01-09
B12: Additional adult cost | P12: 2025-01-10
C13: Primary School | D13: Secondary School | E13: Primary Fully catered | F13: secondary fully catered | G13: Primary Additional Adult | H13: Secondary Addititional Adult | I13: Primary <25 pax | J13: Secondary < 25 | K13: Primary Additional Morning / Afternoon Tea | L13: Secondary Additional Morning / Afternoon Tea | M13: GST | N13: Additional Adult Cost | P13: 2025-01-11
B14: Day visit | C14: ='2025 Fees'!F6 -> 25 | D14: ='2025 Fees'!F17 -> 30 | E14: =('2025 Fees'!$D6*50%) -> 5 | F14: =('2025 Fees'!$D17*50%) -> 7.5 | G14: =SUM('2025 Fees'!D6:E6) -> 10 | H14: =SUM('2025 Fees'!D17:E17) -> 15 | I14: =('2025 Fees'!$D6*30%) -> 3 | J14: =('2025 Fees'!$D17*30%) -> 4.5 | K14: ='2025 Fees'!$D$11 -> 5.5 | L14: ='2025 Fees'!$D$22 -> 8.25 | M14: Yes | N14: =('2025 Fees'!$D6) -> 10 | P14: 2025-01-12
B15: 3 Day Camp | C15: ='2025 Fees'!F7 -> 177 | D15: ='2025 Fees'!F18 -> 228 | E15: =('2025 Fees'!$D7*50%) -> 51 | F15: =('2025 Fees'!$D18*50%) -> 76.5 | G15: =SUM('2025 Fees'!D7:E7) -> 132 | H15: =SUM('2025 Fees'!D18:E18) -> 183 | I15: =('2025 Fees'!$D7*30%) -> 30.6 | J15: =('2025 Fees'!$D18*30%) -> 45.9 | K15: ='2025 Fees'!$D$11 -> 5.5 | L15: ='2025 Fees'!$D$22 -> 8.25 | M15: No | N15: =('2025 Fees'!$D7) -> 102 | P15: 2025-01-13
B16: 4 Day Camp | C16: ='2025 Fees'!F8 -> 248 | D16: ='2025 Fees'!F19 -> 322 | E16: =('2025 Fees'!$D8*50%) -> 74 | F16: =('2025 Fees'!$D19*50%) -> 111 | G16: =SUM('2025 Fees'!D8:E8) -> 193 | H16: =SUM('2025 Fees'!D19:E19) -> 267 | I16: =('2025 Fees'!$D8*30%) -> 44.4 | J16: =('2025 Fees'!$D19*30%) -> 66.6 | K16: ='2025 Fees'!$D$11 -> 5.5 | L16: ='2025 Fees'!$D$22 -> 8.25 | N16: =('2025 Fees'!$D8) -> 148 | P16: 2025-01-14
B17: 5 Day Camp | C17: ='2025 Fees'!F9 -> 319 | D17: ='2025 Fees'!F20 -> 416 | E17: =('2025 Fees'!$D9*50%) -> 97 | F17: =('2025 Fees'!$D20*50%) -> 145.5 | G17: =SUM('2025 Fees'!D9:E9) -> 254 | H17: =SUM('2025 Fees'!D20:E20) -> 351 | I17: =('2025 Fees'!$D9*30%) -> 58.2 | J17: =('2025 Fees'!$D20*30%) -> 87.3 | K17: ='2025 Fees'!$D$11 -> 5.5 | L17: ='2025 Fees'!$D$22 -> 8.25 | N17: =('2025 Fees'!$D9) -> 194 | P17: 2025-01-15
P18: 2025-01-16
B19: 1 | C19: 2 | D19: 3 | E19: 4 | F19: 5 | G19: 6 | H19: 7 | I19: 8 | J19: 9 | K19: 10 | L19: 11 | P19: 2025-01-17
P20: 2025-01-18
B21: Note: If it changes back to a number of FOC adults per child then bbring formula back in from cell H30. | P21: 2025-01-19
P22: 2025-01-20
